Workbook

Sheet 公示
A1: 仁怀市2020年公开招聘事业单位人员面试及总成绩表
A2: 准考证号 | B2: 报考职位 | C2: 招聘单位 | D2: 笔试成绩 | E2: 面试分数 | F2: 总成绩
A3: 10121485330 | B3: 061602 | C3: 0616仁怀市乡镇小学 | D3: =VLOOKUP(A3,'[2]2020年0905'!$C$1:$H$65536,6,FALSE) -> 92 | E3: 86.1 | F3: =ROUND((D3/1.5*0.6+E3*0.4),2) -> 71.24
A4: 10121503319 | B4: 061602 | C4: 0616仁怀市乡镇小学 | D4: =VLOOKUP(A4,'[2]2020年0905'!$C$1:$H$65536,6,FALSE) -> 86.5 | E4: 79.74 | F4: 66.5
A5: 10121487029 | B5: 061602 | C5: 0616仁怀市乡镇小学 | D5: =VLOOKUP(A5,'[2]2020年0905'!$C$1:$H$65536,6,FALSE) -> 84.5 | E5: 85.66 | F5: 68.06
A6: 10121486324 | B6: 061602 | C6: 0616仁怀市乡镇小学 | D6: =VLOOKUP(A6,'[2]2020年0905'!$C$1:$H$65536,6,FALSE) -> 83.5 | E6: 87.3 | F6: 68.32
A7: 10121491226 | B7: 061602 | C7: 0616仁怀市乡镇小学 | D7: =VLOOKUP(A7,'[2]2020年0905'!$C$1:$H$65536,6,FALSE) -> 83 | E7: 85.98 | F7: 67.59
A8: 10121500108 | B8: 061602 | C8: 0616仁怀市乡镇小学 | D8: =VLOOKUP(A8,'[2]2020年0905'!$C$1:$H$65536,6,FALSE) -> 80.5 | E8: 84.46 | F8: 65.98
A9: 10121501911 | B9: 061602 | C9: 0616仁怀市乡镇小学 | D9: =VLOOKUP(A9,'[2]2020年0905'!$C$1:$H$65536,6,FALSE) -> 80.5 | E9: 85.12 | F9: 66.25
A10: 10121486111 | B10: 061602 | C10: 0616仁怀市乡镇小学 | D10: =VLOOKUP(A10,'[2]2020年0905'!$C$1:$H$65536,6,FALSE) -> 79 | E10: 84.86 | F10: 65.54
A11: 10121491725 | B11: 061602 | C11: 0616仁怀市乡镇小学 | D11: =VLOOKUP(A11,'[2]2020年0905'!$C$1:$H$65536,6,FALSE) -> 74 | E11: 81.72 | F11: 62.29
A12: 10121482708 | B12: 061602 | C12: 0616仁怀市乡镇小学 | D12: =VLOOKUP(A12,'[2]2020年0905'!$C$1:$H$65536,6,FALSE) -> 67 | E12: 79.84 | F12: 58.74
A13: 10121504203 | B13: 061602 | C13: 0616仁怀市乡镇小学 | D13: =VLOOKUP(A13,'[2]2020年0905'!$C$1:$H$65536,6,FALSE) -> 63.5 | E13: 0 | F13: 25.4
A14: 10121484822 | B14: 061801 | C14: 0618仁怀市九仓小学 | D14: =VLOOKUP(A14,'[2]2020年0905'!$C$1:$H$65536,6,FALSE) -> 79 | E14: 84.52 | F14: 65.41
A15: 10121489021 | B15: 061603 | C15: 0616仁怀市乡镇小学 | D15: =VLOOKUP(A15,'[2]2020年0905'!$C$1:$H$65536,6,FALSE) -> 94 | E15: 81.5 | F15: 70.2
A16: 10121501004 | B16: 061603 | C16: 0616仁怀市乡镇小学 | D16: =VLOOKUP(A16,'[2]2020年0905'!$C$1:$H$65536,6,FALSE) -> 94 | E16: 82.12 | F16: 70.45
A17: 10121512224 | B17: 061603 | C17: 0616仁怀市乡镇小学 | D17: =VLOOKUP(A17,'[2]2020年0905'!$C$1:$H$65536,6,FALSE) -> 91 | E17: 80.12 | F17: 68.45
A18: 10121486228 | B18: 061603 | C18: 0616仁怀市乡镇小学 | D18: =VLOOKUP(A18,'[2]2020年0905'!$C$1:$H$65536,6,FALSE) -> 89.5 | E18: 86.16 | F18: 70.26
A19: 10121493423 | B19: 061603 | C19: 0616仁怀市乡镇小学 | D19: =VLOOKUP(A19,'[2]2020年0905'!$C$1:$H$65536,6,FALSE) -> 88 | E19: 83.2 | F19: 68.48
A20: 10121512105 | B20: 061603 | C20: 0616仁怀市乡镇小学 | D20: =VLOOKUP(A20,'[2]2020年0905'!$C$1:$H$65536,6,FALSE) -> 88 | E20: 85.08 | F20: 69.23
A21: 10121480724 | B21: 061603 | C21: 0616仁怀市乡镇小学 | D21: =VLOOKUP(A21,'[2]2020年0905'!$C$1:$H$65536,6,FALSE) -> 87.5 | E21: 82.48 | F21: 67.99
A22: 10121484004 | B22: 061603 | C22: 0616仁怀市乡镇小学 | D22: =VLOOKUP(A22,'[2]2020年0905'!$C$1:$H$65536,6,FALSE) -> 87.5 | E22: 83.88 | F22: 68.55
A23: 10121492025 | B23: 061603 | C23: 0616仁怀市乡镇小学 | D23: =VLOOKUP(A23,'[2]2020年0905'!$C$1:$H$65536,6,FALSE) -> 87 | E23: 82.54 | F23: 67.82
A24: 10121512610 | B24: 061603 | C24: 0616仁怀市乡镇小学 | D24: =VLOOKUP(A24,'[2]2020年0905'!$C$1:$H$65536,6,FALSE) -> 85.5 | E24: 81.3 | F24: 66.72
A25: 10121482324 | B25: 061603 | C25: 0616仁怀市乡镇小学 | D25: =VLOOKUP(A25,'[2]2020年0905'!$C$1:$H$65536,6,FALSE) -> 85 | E25: 80.3 | F25: 66.12
A26: 10121485215 | B26: 061603 | C26: 0616仁怀市乡镇小学 | D26: =VLOOKUP(A26,'[2]2020年0905'!$C$1:$H$65536,6,FALSE) -> 85 | E26: 86.38 | F26: 68.55
A27: 10121510827 | B27: 061603 | C27: 0616仁怀市乡镇小学 | D27: =VLOOKUP(A27,'[2]2020年0905'!$C$1:$H$65536,6,FALSE) -> 84.5 | E27: 82.16 | F27: 66.66
A28: 10121481202 | B28: 061603 | C28: 0616仁怀市乡镇小学 | D28: =VLOOKUP(A28,'[2]2020年0905'!$C$1:$H$65536,6,FALSE) -> 84 | E28: 81.46 | F28: 66.18
A29: 10121510724 | B29: 061603 | C29: 0616仁怀市乡镇小学 | D29: =VLOOKUP(A29,'[2]2020年0905'!$C$1:$H$65536,6,FALSE) -> 84 | E29: 82.94 | F29: 66.78
A30: 10121483310 | B30: 061603 | C30: 0616仁怀市乡镇小学 | D30: =VLOOKUP(A30,'[2]2020年0905'!$C$1:$H$65536,6,FALSE) -> 81.5 | E30: 77.08 | F30: 63.43
A31: 10121502127 | B31: 061603 | C31: 0616仁怀市乡镇小学 | D31: =VLOOKUP(A31,'[2]2020年0905'!$C$1:$H$65536,6,FALSE) -> 81.5 | E31: 81.38 | F31: 65.15
A32: 10121512021 | B32: 061603 | C32: 0616仁怀市乡镇小学 | D32: =VLOOKUP(A32,'[2]2020年0905'!$C$1:$H$65536,6,FALSE) -> 81.5 | E32: 74.68 | F32: 62.47
A33: 10121485830 | B33: 061603 | C33: 0616仁怀市乡镇小学 | D33: =VLOOKUP(A33,'[2]2020年0905'!$C$1:$H$65536,6,FALSE) -> 80.5 | E33: 82.94 | F33: 65.38
A34: 10121485025 | B34: 061603 | C34: 0616仁怀市乡镇小学 | D34: =VLOOKUP(A34,'[2]2020年0905'!$C$1:$H$65536,6,FALSE) -> 80 | E34: 84.82 | F34: 65.93
A35: 10121485724 | B35: 061603 | C35: 0616仁怀市乡镇小学 | D35: =VLOOKUP(A35,'[2]2020年0905'!$C$1:$H$65536,6,FALSE) -> 77 | E35: 81.08 | F35: 63.23
A36: 10121488911 | B36: 061603 | C36: 0616仁怀市乡镇小学 | D36: =VLOOKUP(A36,'[2]2020年0905'!$C$1:$H$65536,6,FALSE) -> 77 | E36: 0 | F36: 30.8
A37: 10121488719 | B37: 061603 | C37: 0616仁怀市乡镇小学 | D37: =VLOOKUP(A37,'[2]2020年0905'!$C$1:$H$65536,6,FALSE) -> 76 | E37: 71.64 | F37: 59.06
A38: 10121503115 | B38: 061603 | C38: 0616仁怀市乡镇小学 | D38: =VLOOKUP(A38,'[2]2020年0905'!$C$1:$H$65536,6,FALSE) -> 76 | E38: 74.54 | F38: 60.22
A39: 10121505026 | B39: 061603 | C39: 0616仁怀市乡镇小学 | D39: =VLOOKUP(A39,'[2]2020年0905'!$C$1:$H$65536,6,FALSE) -> 73.5 | E39: 81.08 | F39: 61.83
A40: 10121491908 | B40: 061603 | C40: 0616仁怀市乡镇小学 | D40: =VLOOKUP(A40,'[2]2020年0905'!$C$1:$H$65536,6,FALSE) -> 72 | E40: 83.38 | F40: 62.15
A41: 10121486829 | B41: 061603 | C41: 0616仁怀市乡镇小学 | D41: =VLOOKUP(A41,'[2]2020年0905'!$C$1:$H$65536,6,FALSE) -> 71 | E41: 81.42 | F41: 60.97
A42: 10121484226 | B42: 061603 | C42: 0616仁怀市乡镇小学 | D42: =VLOOKUP(A42,'[2]2020年0905'!$C$1:$H$65536,6,FALSE) -> 70.5 | E42: 80.04 | F42: 60.22
A43: 10121487814 | B43: 061603 | C43: 0616仁怀市乡镇小学 | D43: =VLOOKUP(A43,'[2]2020年0905'!$C$1:$H$65536,6,FALSE) -> 68.5 | E43: 0 | F43: 27.4
A44: 10121488914 | B44: 061603 | C44: 0616仁怀市乡镇小学 | D44: =VLOOKUP(A44,'[2]2020年0905'!$C$1:$H$65536,6,FALSE) -> 68.5 | E44: 79.58 | F44: 59.23
A45: 10121510824 | B45: 061603 | C45: 0616仁怀市乡镇小学 | D45: =VLOOKUP(A45,'[2]2020年0905'!$C$1:$H$65536,6,FALSE) -> 68.5 | E45: 0 | F45: 27.4
A46: 10121511618 | B46: 061603 | C46: 0616仁怀市乡镇小学 | D46: =VLOOKUP(A46,'[2]2020年0905'!$C$1:$H$65536,6,FALSE) -> 68.5 | E46: 0 | F46: 27.4
A47: 10121492217 | B47: 061604 | C47: 0616仁怀市乡镇小学 | D47: =VLOOKUP(A47,'[2]2020年0905'!$C$1:$H$65536,6,FALSE) -> 106.5 | E47: 78.34 | F47: 73.94
A48: 10121489027 | B48: 061604 | C48: 0616仁怀市乡镇小学 | D48: =VLOOKUP(A48,'[2]2020年0905'!$C$1:$H$65536,6,FALSE) -> 106 | E48: 80.98 | F48: 74.79
A49: 10121482421 | B49: 061604 | C49: 0616仁怀市乡镇小学 | D49: =VLOOKUP(A49,'[2]2020年0905'!$C$1:$H$65536,6,FALSE) -> 102.5 | E49: 78.76 | F49: 72.5
A50: 10121502910 | B50: 061604 | C50: 0616仁怀市乡镇小学 | D50: =VLOOKUP(A50,'[2]2020年0905'!$C$1:$H$65536,6,FALSE) -> 101 | E50: 76.22 | F50: 70.89
A51: 10121504424 | B51: 061604 | C51: 0616仁怀市乡镇小学 | D51: =VLOOKUP(A51,'[2]2020年0905'!$C$1:$H$65536,6,FALSE) -> 100 | E51: 76.96 | F51: 70.78
A52: 10121502216 | B52: 061604 | C52: 0616仁怀市乡镇小学 | D52: =VLOOKUP(A52,'[2]2020年0905'!$C$1:$H$65536,6,FALSE) -> 98.5 | E52: 79 | F52: 71
A53: 10121511924 | B53: 061604 | C53: 0616仁怀市乡镇小学 | D53: =VLOOKUP(A53,'[2]2020年0905'!$C$1:$H$65536,6,FALSE) -> 98 | E53: 78.24 | F53: 70.5
A54: 10121481810 | B54: 061604 | C54: 0616仁怀市乡镇小学 | D54: =VLOOKUP(A54,'[2]2020年0905'!$C$1:$H$65536,6,FALSE) -> 97.5 | E54: 82.42 | F54: 71.97
A55: 10121487730 | B55: 061604 | C55: 0616仁怀市乡镇小学 | D55: =VLOOKUP(A55,'[2]2020年0905'!$C$1:$H$65536,6,FALSE) -> 97.5 | E55: 80.52 | F55: 71.21
A56: 10121510315 | B56: 061604 | C56: 0616仁怀市乡镇小学 | D56: =VLOOKUP(A56,'[2]2020年0905'!$C$1:$H$65536,6,FALSE) -> 97 | E56: 81.18 | F56: 71.27
A57: 10121505030 | B57: 061604 | C57: 0616仁怀市乡镇小学 | D57: =VLOOKUP(A57,'[2]2020年0905'!$C$1:$H$65536,6,FALSE) -> 96.5 | E57: 82.12 | F57: 71.45
A58: 10121485912 | B58: 061604 | C58: 0616仁怀市乡镇小学 | D58: =VLOOKUP(A58,'[2]2020年0905'!$C$1:$H$65536,6,FALSE) -> 95.5 | E58: 84.02 | F58: 71.81
A59: 10121490416 | B59: 061604 | C59: 0616仁怀市乡镇小学 | D59: =VLOOKUP(A59,'[2]2020年0905'!$C$1:$H$65536,6,FALSE) -> 95 | E59: 0 | F59: 38
A60: 10121491015 | B60: 061604 | C60: 0616仁怀市乡镇小学 | D60: =VLOOKUP(A60,'[2]2020年0905'!$C$1:$H$65536,6,FALSE) -> 95 | E60: 80.14 | F60: 70.06
A61: 10121484323 | B61: 061604 | C61: 0616仁怀市乡镇小学 | D61: =VLOOKUP(A61,'[2]2020年0905'!$C$1:$H$65536,6,FALSE) -> 93.5 | E61: 81.48 | F61: 69.99
A62: 10121486522 | B62: 061604 | C62: 0616仁怀市乡镇小学 | D62: =VLOOKUP(A62,'[2]2020年0905'!$C$1:$H$65536,6,FALSE) -> 93.5 | E62: 79.04 | F62: 69.02
A63: 10121504119 | B63: 061604 | C63: 0616仁怀市乡镇小学 | D63: =VLOOKUP(A63,'[2]2020年0905'!$C$1:$H$65536,6,FALSE) -> 92 | E63: 0 | F63: 36.8
A64: 10121480418 | B64: 061604 | C64: 0616仁怀市乡镇小学 | D64: =VLOOKUP(A64,'[2]2020年0905'!$C$1:$H$65536,6,FALSE) -> 90 | E64: 76.16 | F64: 66.46
A65: 10121500403 | B65: 061604 | C65: 0616仁怀市乡镇小学 | D65: =VLOOKUP(A65,'[2]2020年0905'!$C$1:$H$65536,6,FALSE) -> 89 | E65: 77.02 | F65: 66.41
A66: 10121504126 | B66: 061604 | C66: 0616仁怀市乡镇小学 | D66: =VLOOKUP(A66,'[2]2020年0905'!$C$1:$H$65536,6,FALSE) -> 89 | E66: 80.08 | F66: 67.63
A67: 10121491116 | B67: 061604 | C67: 0616仁怀市乡镇小学 | D67: =VLOOKUP(A67,'[2]2020年0905'!$C$1:$H$65536,6,FALSE) -> 88.5 | E67: 0 | F67: =ROUND((D67/1.5*0.6+E67*0.4),2) -> 35.4
A68: 10121493509 | B68: 061604 | C68: 0616仁怀市乡镇小学 | D68: =VLOOKUP(A68,'[2]2020年0905'!$C$1:$H$65536,6,FALSE) -> 88.5 | E68: 81.2 | F68: 67.88
A69: 10121488611 | B69: 061604 | C69: 0616仁怀市乡镇小学 | D69: =VLOOKUP(A69,'[2]2020年0905'!$C$1:$H$65536,6,FALSE) -> 87 | E69: 76.4 | F69: 65.36
A70: 10121500104 | B70: 061604 | C70: 0616仁怀市乡镇小学 | D70: =VLOOKUP(A70,'[2]2020年0905'!$C$1:$H$65536,6,FALSE) -> 87 | E70: 76.56 | F70: 65.42
A71: 10121486920 | B71: 061604 | C71: 0616仁怀市乡镇小学 | D71: =VLOOKUP(A71,'[2]2020年0905'!$C$1:$H$65536,6,FALSE) -> 86.5 | E71: 77.82 | F71: 65.73
A72: 10121481020 | B72: 061604 | C72: 0616仁怀市乡镇小学 | D72: =VLOOKUP(A72,'[2]2020年0905'!$C$1:$H$65536,6,FALSE) -> 86 | E72: 0 | F72: 34.4
A73: 10121502628 | B73: 061604 | C73: 0616仁怀市乡镇小学 | D73: =VLOOKUP(A73,'[2]2020年0905'!$C$1:$H$65536,6,FALSE) -> 86 | E73: 77.1 | F73: 65.24
A74: 10121503510 | B74: 061604 | C74: 0616仁怀市乡镇小学 | D74: =VLOOKUP(A74,'[2]2020年0905'!$C$1:$H$65536,6,FALSE) -> 85.5 | E74: 0 | F74: 34.2
A75: 10121502712 | B75: 061604 | C75: 0616仁怀市乡镇小学 | D75: =VLOOKUP(A75,'[2]2020年0905'!$C$1:$H$65536,6,FALSE) -> 85 | E75: 0 | F75: 34
A76: 10121487215 | B76: 061604 | C76: 0616仁怀市乡镇小学 | D76: =VLOOKUP(A76,'[2]2020年0905'!$C$1:$H$65536,6,FALSE) -> 84.5 | E76: 74.5 | F76: 63.6
A77: 10121480712 | B77: 061605 | C77: 0616仁怀市乡镇小学 | D77: =VLOOKUP(A77,'[2]2020年0905'!$C$1:$H$65536,6,FALSE) -> 103.5 | E77: 84.72 | F77: 75.29
A78: 10121501624 | B78: 061605 | C78: 0616仁怀市乡镇小学 | D78: =VLOOKUP(A78,'[2]2020年0905'!$C$1:$H$65536,6,FALSE) -> 102.5 | E78: 85.08 | F78: 75.03
A79: 10121482628 | B79: 061605 | C79: 0616仁怀市乡镇小学 | D79: =VLOOKUP(A79,'[2]2020年0905'!$C$1:$H$65536,6,FALSE) -> 101.5 | E79: 85.58 | F79: 74.83
A80: 10121486203 | B80: 061605 | C80: 0616仁怀市乡镇小学 | D80: =VLOOKUP(A80,'[2]2020年0905'!$C$1:$H$65536,6,FALSE) -> 97 | E80: 84.8 | F80: 72.72
A81: 10121484228 | B81: 061605 | C81: 0616仁怀市乡镇小学 | D81: =VLOOKUP(A81,'[2]2020年0905'!$C$1:$H$65536,6,FALSE) -> 96 | E81: 82.4 | F81: 71.36
A82: 10121492826 | B82: 061605 | C82: 0616仁怀市乡镇小学 | D82: =VLOOKUP(A82,'[2]2020年0905'!$C$1:$H$65536,6,FALSE) -> 95.5 | E82: 88.22 | F82: 73.49
A83: 10121510116 | B83: 061605 | C83: 0616仁怀市乡镇小学 | D83: =VLOOKUP(A83,'[2]2020年0905'!$C$1:$H$65536,6,FALSE) -> 95.5 | E83: 89.56 | F83: 74.02
A84: 10121489017 | B84: 061605 | C84: 0616仁怀市乡镇小学 | D84: =VLOOKUP(A84,'[2]2020年0905'!$C$1:$H$65536,6,FALSE) -> 94 | E84: 86.76 | F84: 72.3
A85: 10121483016 | B85: 061605 | C85: 0616仁怀市乡镇小学 | D85: =VLOOKUP(A85,'[2]2020年0905'!$C$1:$H$65536,6,FALSE) -> 93.5 | E85: 88.02 | F85: 72.61
A86: 10121483311 | B86: 061605 | C86: 0616仁怀市乡镇小学 | D86: =VLOOKUP(A86,'[2]2020年0905'!$C$1:$H$65536,6,FALSE) -> 93 | E86: 87.11 | F86: 72.04
A87: 10121511730 | B87: 061605 | C87: 0616仁怀市乡镇小学 | D87: =VLOOKUP(A87,'[2]2020年0905'!$C$1:$H$65536,6,FALSE) -> 92.5 | E87: 87.02 | F87: 71.81
A88: 10121480630 | B88: 061605 | C88: 0616仁怀市乡镇小学 | D88: =VLOOKUP(A88,'[2]2020年0905'!$C$1:$H$65536,6,FALSE) -> 92 | E88: 87.1 | F88: 71.64
A89: 10121483323 | B89: 061605 | C89: 0616仁怀市乡镇小学 | D89: =VLOOKUP(A89,'[2]2020年0905'!$C$1:$H$65536,6,FALSE) -> 91.5 | E89: 89.88 | F89: 72.55
A90: 10121486816 | B90: 061605 | C90: 0616仁怀市乡镇小学 | D90: =VLOOKUP(A90,'[2]2020年0905'!$C$1:$H$65536,6,FALSE) -> 91.5 | E90: 88.12 | F90: 71.85
A91: 10121491512 | B91: 061605 | C91: 0616仁怀市乡镇小学 | D91: =VLOOKUP(A91,'[2]2020年0905'!$C$1:$H$65536,6,FALSE) -> 90.5 | E91: 82.4 | F91: 69.16
A92: 10121502504 | B92: 061605 | C92: 0616仁怀市乡镇小学 | D92: =VLOOKUP(A92,'[2]2020年0905'!$C$1:$H$65536,6,FALSE) -> 90.5 | E92: 79.18 | F92: 67.87
A93: 10121511601 | B93: 061605 | C93: 0616仁怀市乡镇小学 | D93: =VLOOKUP(A93,'[2]2020年0905'!$C$1:$H$65536,6,FALSE) -> 89.5 | E93: 79.92 | F93: 67.77
A94: 10121505020 | B94: 061605 | C94: 0616仁怀市乡镇小学 | D94: =VLOOKUP(A94,'[2]2020年0905'!$C$1:$H$65536,6,FALSE) -> 87 | E94: 86.64 | F94: 69.46
A95: 10121487516 | B95: 061605 | C95: 0616仁怀市乡镇小学 | D95: =VLOOKUP(A95,'[2]2020年0905'!$C$1:$H$65536,6,FALSE) -> 86.5 | E95: 0 | F95: 34.6
A96: 10121492423 | B96: 061605 | C96: 0616仁怀市乡镇小学 | D96: =VLOOKUP(A96,'[2]2020年0905'!$C$1:$H$65536,6,FALSE) -> 86.5 | E96: 78.28 | F96: 65.91
A97: 10121481716 | B97: 061605 | C97: 0616仁怀市乡镇小学 | D97: =VLOOKUP(A97,'[2]2020年0905'!$C$1:$H$65536,6,FALSE) -> 86 | E97: 83.02 | F97: 67.61
A98: 10121490828 | B98: 061605 | C98: 0616仁怀市乡镇小学 | D98: =VLOOKUP(A98,'[2]2020年0905'!$C$1:$H$65536,6,FALSE) -> 86 | E98: 88.42 | F98: 69.77
A99: 10121483129 | B99: 061605 | C99: 0616仁怀市乡镇小学 | D99: =VLOOKUP(A99,'[2]2020年0905'!$C$1:$H$65536,6,FALSE) -> 85.5 | E99: 0 | F99: 34.2
A100: 10121483711 | B100: 061605 | C100: 0616仁怀市乡镇小学 | D100: =VLOOKUP(A100,'[2]2020年0905'!$C$1:$H$65536,6,FALSE) -> 85 | E100: 80.4 | F100: 66.16
A101: 10121485009 | B101: 061605 | C101: 0616仁怀市乡镇小学 | D101: =VLOOKUP(A101,'[2]2020年0905'!$C$1:$H$65536,6,FALSE) -> 85 | E101: 0 | F101: 34
A102: 10121504411 | B102: 061605 | C102: 0616仁怀市乡镇小学 | D102: =VLOOKUP(A102,'[2]2020年0905'!$C$1:$H$65536,6,FALSE) -> 84.5 | E102: 83.04 | F102: 67.02
A103: 10121486304 | B103: 061605 | C103: 0616仁怀市乡镇小学 | D103: =VLOOKUP(A103,'[2]2020年0905'!$C$1:$H$65536,6,FALSE) -> 84 | E103: 85.42 | F103: 67.77
A104: 10121491720 | B104: 061605 | C104: 0616仁怀市乡镇小学 | D104: =VLOOKUP(A104,'[2]2020年0905'!$C$1:$H$65536,6,FALSE) -> 84 | E104: 84.2 | F104: 67.28
A105: 10121504312 | B105: 061605 | C105: 0616仁怀市乡镇小学 | D105: =VLOOKUP(A105,'[2]2020年0905'!$C$1:$H$65536,6,FALSE) -> 84 | E105: 0 | F105: 33.6
A106: 10121482328 | B106: 061606 | C106: 0616仁怀市乡镇小学 | D106: =VLOOKUP(A106,'[2]2020年0905'!$C$1:$H$65536,6,FALSE) -> 101 | E106: 80.48 | F106: 72.59
A107: 10121491510 | B107: 061606 | C107: 0616仁怀市乡镇小学 | D107: =VLOOKUP(A107,'[2]2020年0905'!$C$1:$H$65536,6,FALSE) -> 94.5 | E107: 81.06 | F107: 70.22
A108: 10121483330 | B108: 061606 | C108: 0616仁怀市乡镇小学 | D108: =VLOOKUP(A108,'[2]2020年0905'!$C$1:$H$65536,6,FALSE) -> 93.5 | E108: 83.22 | F108: 70.69
A109: 10121482727 | B109: 061606 | C109: 0616仁怀市乡镇小学 | D109: =VLOOKUP(A109,'[2]2020年0905'!$C$1:$H$65536,6,FALSE) -> 91.5 | E109: 82.76 | F109: 69.7
A110: 10121490910 | B110: 061606 | C110: 0616仁怀市乡镇小学 | D110: =VLOOKUP(A110,'[2]2020年0905'!$C$1:$H$65536,6,FALSE) -> 91.5 | E110: 80.64 | F110: 68.86
A111: 10121491820 | B111: 061606 | C111: 0616仁怀市乡镇小学 | D111: =VLOOKUP(A111,'[2]2020年0905'!$C$1:$H$65536,6,FALSE) -> 89.5 | E111: 80.56 | F111: 68.02
A112: 10121493121 | B112: 061606 | C112: 0616仁怀市乡镇小学 | D112: =VLOOKUP(A112,'[2]2020年0905'!$C$1:$H$65536,6,FALSE) -> 89 | E112: 79.9 | F112: 67.56
A113: 10121487804 | B113: 061606 | C113: 0616仁怀市乡镇小学 | D113: =VLOOKUP(A113,'[2]2020年0905'!$C$1:$H$65536,6,FALSE) -> 88 | E113: 81.9 | F113: 67.96
A114: 10121491221 | B114: 061606 | C114: 0616仁怀市乡镇小学 | D114: =VLOOKUP(A114,'[2]2020年0905'!$C$1:$H$65536,6,FALSE) -> 85 | E114: 85.72 | F114: 68.29
A115: 10121492313 | B115: 061606 | C115: 0616仁怀市乡镇小学 | D115: =VLOOKUP(A115,'[2]2020年0905'!$C$1:$H$65536,6,FALSE) -> 85 | E115: 83.72 | F115: 67.49
A116: 10121481927 | B116: 061606 | C116: 0616仁怀市乡镇小学 | D116: =VLOOKUP(A116,'[2]2020年0905'!$C$1:$H$65536,6,FALSE) -> 84.5 | E116: 81.16 | F116: 66.26
A117: 10121504504 | B117: 061606 | C117: 0616仁怀市乡镇小学 | D117: =VLOOKUP(A117,'[2]2020年0905'!$C$1:$H$65536,6,FALSE) -> 84.5 | E117: 75.84 | F117: 64.14
A118: 10121481516 | B118: 061606 | C118: 0616仁怀市乡镇小学 | D118: =VLOOKUP(A118,'[2]2020年0905'!$C$1:$H$65536,6,FALSE) -> 84 | E118: 77.76 | F118: 64.7
A119: 10121500602 | B119: 061606 | C119: 0616仁怀市乡镇小学 | D119: =VLOOKUP(A119,'[2]2020年0905'!$C$1:$H$65536,6,FALSE) -> 83 | E119: 85.32 | F119: 67.33
A120: 10121485605 | B120: 061606 | C120: 0616仁怀市乡镇小学 | D120: =VLOOKUP(A120,'[2]2020年0905'!$C$1:$H$65536,6,FALSE) -> 82.5 | E120: 79.12 | F120: 64.65
A121: 10121500207 | B121: 061606 | C121: 0616仁怀市乡镇小学 | D121: =VLOOKUP(A121,'[2]2020年0905'!$C$1:$H$65536,6,FALSE) -> 82.5 | E121: 83.42 | F121: 66.37
A122: 10121487301 | B122: 061606 | C122: 0616仁怀市乡镇小学 | D122: =VLOOKUP(A122,'[2]2020年0905'!$C$1:$H$65536,6,FALSE) -> 82 | E122: 0 | F122: 32.8
A123: 10121500304 | B123: 061606 | C123: 0616仁怀市乡镇小学 | D123: =VLOOKUP(A123,'[2]2020年0905'!$C$1:$H$65536,6,FALSE) -> 82 | E123: 78.42 | F123: 64.17
A124: 10121484829 | B124: 061606 | C124: 0616仁怀市乡镇小学 | D124: =VLOOKUP(A124,'[2]2020年0905'!$C$1:$H$65536,6,FALSE) -> 81.5 | E124: 79.32 | F124: 64.33
A125: 10121481110 | B125: 061606 | C125: 0616仁怀市乡镇小学 | D125: =VLOOKUP(A125,'[2]2020年0905'!$C$1:$H$65536,6,FALSE) -> 80 | E125: 0 | F125: 32
A126: 10121488109 | B126: 061606 | C126: 0616仁怀市乡镇小学 | D126: =VLOOKUP(A126,'[2]2020年0905'!$C$1:$H$65536,6,FALSE) -> 80 | E126: 76.44 | F126: 62.58
A127: 10121492604 | B127: 061606 | C127: 0616仁怀市乡镇小学 | D127: =VLOOKUP(A127,'[2]2020年0905'!$C$1:$H$65536,6,FALSE) -> 80 | E127: 80.08 | F127: 64.03
A128: 10121482118 | B128: 061606 | C128: 0616仁怀市乡镇小学 | D128: =VLOOKUP(A128,'[2]2020年0905'!$C$1:$H$65536,6,FALSE) -> 79.5 | E128: 75.26 | F128: 61.9
A129: 10121500706 | B129: 061606 | C129: 0616仁怀市乡镇小学 | D129: =VLOOKUP(A129,'[2]2020年0905'!$C$1:$H$65536,6,FALSE) -> 79.5 | E129: 75.6 | F129: 62.04
A130: 10121502915 | B130: 061606 | C130: 0616仁怀市乡镇小学 | D130: =VLOOKUP(A130,'[2]2020年0905'!$C$1:$H$65536,6,FALSE) -> 79.5 | E130: 0 | F130: 31.8
A131: 10121486728 | B131: 061606 | C131: 0616仁怀市乡镇小学 | D131: =VLOOKUP(A131,'[2]2020年0905'!$C$1:$H$65536,6,FALSE) -> 78.5 | E131: 77.48 | F131: =ROUND((D131/1.5*0.6+E131*0.4),2) -> 62.39
A132: 10121512012 | B132: 061606 | C132: 0616仁怀市乡镇小学 | D132: =VLOOKUP(A132,'[2]2020年0905'!$C$1:$H$65536,6,FALSE) -> 78.5 | E132: 78.54 | F132: 62.82
A133: 10121504909 | B133: 061609 | C133: 0616仁怀市乡镇小学 | D133: =VLOOKUP(A133,'[2]2020年0905'!$C$1:$H$65536,6,FALSE) -> 106.5 | E133: 79.28 | F133: 74.31
A134: 10121486527 | B134: 061609 | C134: 0616仁怀市乡镇小学 | D134: =VLOOKUP(A134,'[2]2020年0905'!$C$1:$H$65536,6,FALSE) -> 94.5 | E134: 73.2 | F134: 67.08
A135: 10121510220 | B135: 061609 | C135: 0616仁怀市乡镇小学 | D135: =VLOOKUP(A135,'[2]2020年0905'!$C$1:$H$65536,6,FALSE) -> 89.5 | E135: 70 | F135: 63.8
A136: 10121483913 | B136: 061609 | C136: 0616仁怀市乡镇小学 | D136: =VLOOKUP(A136,'[2]2020年0905'!$C$1:$H$65536,6,FALSE) -> 89 | E136: 70.96 | F136: 63.98
A137: 10121511709 | B137: 061609 | C137: 0616仁怀市乡镇小学 | D137: =VLOOKUP(A137,'[2]2020年0905'!$C$1:$H$65536,6,FALSE) -> 89 | E137: 87.18 | F137: 70.47
A138: 10121512614 | B138: 061609 | C138: 0616仁怀市乡镇小学 | D138: =VLOOKUP(A138,'[2]2020年0905'!$C$1:$H$65536,6,FALSE) -> 87.5 | E138: 71.54 | F138: 63.62
A139: 10121500116 | B139: 061609 | C139: 0616仁怀市乡镇小学 | D139: =VLOOKUP(A139,'[2]2020年0905'!$C$1:$H$65536,6,FALSE) -> 87 | E139: 84.2 | F139: 68.48
A140: 10121501407 | B140: 061609 | C140: 0616仁怀市乡镇小学 | D140: =VLOOKUP(A140,'[2]2020年0905'!$C$1:$H$65536,6,FALSE) -> 84.5 | E140: 75.2 | F140: 63.88
A141: 10121488912 | B141: 061609 | C141: 0616仁怀市乡镇小学 | D141: =VLOOKUP(A141,'[2]2020年0905'!$C$1:$H$65536,6,FALSE) -> 84 | E141: 85.28 | F141: 67.71
A142: 10121481410 | B142: 061609 | C142: 0616仁怀市乡镇小学 | D142: =VLOOKUP(A142,'[2]2020年0905'!$C$1:$H$65536,6,FALSE) -> 83 | E142: 79.84 | F142: 65.14
A143: 10121490918 | B143: 061609 | C143: 0616仁怀市乡镇小学 | D143: =VLOOKUP(A143,'[2]2020年0905'!$C$1:$H$65536,6,FALSE) -> 81.5 | E143: 85.06 | F143: 66.62
A144: 10121485302 | B144: 061609 | C144: 0616仁怀市乡镇小学 | D144: =VLOOKUP(A144,'[2]2020年0905'!$C$1:$H$65536,6,FALSE) -> 78 | E144: 70.48 | F144: 59.39
A145: 10121502209 | B145: 061609 | C145: 0616仁怀市乡镇小学 | D145: =VLOOKUP(A145,'[2]2020年0905'!$C$1:$H$65536,6,FALSE) -> 77.5 | E145: 68.9 | F145: 58.56
A146: 10121501403 | B146: 061609 | C146: 0616仁怀市乡镇小学 | D146: =VLOOKUP(A146,'[2]2020年0905'!$C$1:$H$65536,6,FALSE) -> 74.5 | E146: 69.92 | F146: 57.77
A147: 10121501019 | B147: 061609 | C147: 0616仁怀市乡镇小学 | D147: =VLOOKUP(A147,'[2]2020年0905'!$C$1:$H$65536,6,FALSE) -> 74 | E147: 68.56 | F147: 57.02
A148: 10121488627 | B148: 061609 | C148: 0616仁怀市乡镇小学 | D148: =VLOOKUP(A148,'[2]2020年0905'!$C$1:$H$65536,6,FALSE) -> 73.5 | E148: 79.5 | F148: 61.2
A149: 10121503502 | B149: 061609 | C149: 0616仁怀市乡镇小学 | D149: =VLOOKUP(A149,'[2]2020年0905'!$C$1:$H$65536,6,FALSE) -> 72.5 | E149: 85.82 | F149: 63.33
A150: 10121480819 | B150: 061609 | C150: 0616仁怀市乡镇小学 | D150: =VLOOKUP(A150,'[2]2020年0905'!$C$1:$H$65536,6,FALSE) -> 65.5 | E150: 83.4 | F150: 59.56
A151: 10121487223 | B151: 061609 | C151: 0616仁怀市乡镇小学 | D151: =VLOOKUP(A151,'[2]2020年0905'!$C$1:$H$65536,6,FALSE) -> 64 | E151: 79.66 | F151: 57.46
A152: 10121488015 | B152: 061901 | C152: 0619仁怀市龙井小学 | D152: =VLOOKUP(A152,'[2]2020年0905'!$C$1:$H$65536,6,FALSE) -> 93.5 | E152: 78.2 | F152: 68.68
A153: 10121483122 | B153: 061901 | C153: 0619仁怀市龙井小学 | D153: =VLOOKUP(A153,'[2]2020年0905'!$C$1:$H$65536,6,FALSE) -> 87.5 | E153: 82.74 | F153: 68.1
A154: 10121500220 | B154: 061701 | C154: 0617仁怀市喜头小学 | D154: =VLOOKUP(A154,'[2]2020年0905'!$C$1:$H$65536,6,FALSE) -> 100.5 | E154: 82.06 | F154: 73.02
A155: 10121492207 | B155: 061701 | C155: 0617仁怀市喜头小学 | D155: =VLOOKUP(A155,'[2]2020年0905'!$C$1:$H$65536,6,FALSE) -> 99.5 | E155: 84.3 | F155: 73.52
A156: 10121490424 | B156: 061701 | C156: 0617仁怀市喜头小学 | D156: =VLOOKUP(A156,'[2]2020年0905'!$C$1:$H$65536,6,FALSE) -> 98 | E156: 72.52 | F156: 68.21
A157: 10121486123 | B157: 061607 | C157: 0616仁怀市乡镇小学 | D157: =VLOOKUP(A157,'[2]2020年0905'!$C$1:$H$65536,6,FALSE) -> 111 | E157: 79.8 | F157: 76.32
A158: 10121481530 | B158: 061607 | C158: 0616仁怀市乡镇小学 | D158: =VLOOKUP(A158,'[2]2020年0905'!$C$1:$H$65536,6,FALSE) -> 95.5 | E158: 85.26 | F158: 72.3
A159: 10121493203 | B159: 061607 | C159: 0616仁怀市乡镇小学 | D159: =VLOOKUP(A159,'[2]2020年0905'!$C$1:$H$65536,6,FALSE) -> 95 | E159: 72.44 | F159: 66.98
A160: 10121501702 | B160: 061607 | C160: 0616仁怀市乡镇小学 | D160: =VLOOKUP(A160,'[2]2020年0905'!$C$1:$H$65536,6,FALSE) -> 93.5 | E160: 71.38 | F160: 65.95
A161: 10121486120 | B161: 061607 | C161: 0616仁怀市乡镇小学 | D161: =VLOOKUP(A161,'[2]2020年0905'!$C$1:$H$65536,6,FALSE) -> 93 | E161: 77.12 | F161: 68.05
A162: 10121488205 | B162: 061607 | C162: 0616仁怀市乡镇小学 | D162: =VLOOKUP(A162,'[2]2020年0905'!$C$1:$H$65536,6,FALSE) -> 93 | E162: 86.34 | F162: 71.74
A163: 10121510611 | B163: 061607 | C163: 0616仁怀市乡镇小学 | D163: =VLOOKUP(A163,'[2]2020年0905'!$C$1:$H$65536,6,FALSE) -> 92.5 | E163: 84.7 | F163: 70.88
A164: 10121483830 | B164: 061607 | C164: 0616仁怀市乡镇小学 | D164: =VLOOKUP(A164,'[2]2020年0905'!$C$1:$H$65536,6,FALSE) -> 90.5 | E164: 78.02 | F164: 67.41
A165: 10121504217 | B165: 061607 | C165: 0616仁怀市乡镇小学 | D165: =VLOOKUP(A165,'[2]2020年0905'!$C$1:$H$65536,6,FALSE) -> 90.5 | E165: 73.54 | F165: 65.62
A166: 10121481718 | B166: 061607 | C166: 0616仁怀市乡镇小学 | D166: =VLOOKUP(A166,'[2]2020年0905'!$C$1:$H$65536,6,FALSE) -> 90 | E166: 82.4 | F166: 68.96
A167: 10121486909 | B167: 061607 | C167: 0616仁怀市乡镇小学 | D167: =VLOOKUP(A167,'[2]2020年0905'!$C$1:$H$65536,6,FALSE) -> 85 | E167: 0 | F167: 34
A168: 10121487530 | B168: 061607 | C168: 0616仁怀市乡镇小学 | D168: =VLOOKUP(A168,'[2]2020年0905'!$C$1:$H$65536,6,FALSE) -> 85 | E168: 0 | F168: 34
A169: 10121491920 | B169: 061607 | C169: 0616仁怀市乡镇小学 | D169: =VLOOKUP(A169,'[2]2020年0905'!$C$1:$H$65536,6,FALSE) -> 85 | E169: 74.18 | F169: 63.67
A170: 10121481619 | B170: 061607 | C170: 0616仁怀市乡镇小学 | D170: =VLOOKUP(A170,'[2]2020年0905'!$C$1:$H$65536,6,FALSE) -> 83 | E170: 74.06 | F170: 62.82
A171: 10121501215 | B171: 061607 | C171: 0616仁怀市乡镇小学 | D171: =VLOOKUP(A171,'[2]2020年0905'!$C$1:$H$65536,6,FALSE) -> 82.5 | E171: 75.24 | F171: 63.1
A172: 10121488104 | B172: 061607 | C172: 0616仁怀市乡镇小学 | D172: =VLOOKUP(A172,'[2]2020年0905'!$C$1:$H$65536,6,FALSE) -> 81.5 | E172: 0 | F172: 32.6
A173: 10121493107 | B173: 061607 | C173: 0616仁怀市乡镇小学 | D173: =VLOOKUP(A173,'[2]2020年0905'!$C$1:$H$65536,6,FALSE) -> 79.5 | E173: 0 | F173: 31.8
A174: 10121493703 | B174: 061607 | C174: 0616仁怀市乡镇小学 | D174: =VLOOKUP(A174,'[2]2020年0905'!$C$1:$H$65536,6,FALSE) -> 79 | E174: 0 | F174: 31.6
A175: 10121491123 | B175: 061607 | C175: 0616仁怀市乡镇小学 | D175: =VLOOKUP(A175,'[2]2020年0905'!$C$1:$H$65536,6,FALSE) -> 78.5 | E175: 0 | F175: 31.4
A176: 10121484526 | B176: 061607 | C176: 0616仁怀市乡镇小学 | D176: =VLOOKUP(A176,'[2]2020年0905'!$C$1:$H$65536,6,FALSE) -> 77 | E176: 73.44 | F176: 60.18
A177: 10121503422 | B177: 061607 | C177: 0616仁怀市乡镇小学 | D177: =VLOOKUP(A177,'[2]2020年0905'!$C$1:$H$65536,6,FALSE) -> 77 | E177: 73.16 | F177: 60.06
A178: 10121512416 | B178: 061607 | C178: 0616仁怀市乡镇小学 | D178: =VLOOKUP(A178,'[2]2020年0905'!$C$1:$H$65536,6,FALSE) -> 77 | E178: 69.06 | F178: 58.42
A179: 10121480903 | B179: 061607 | C179: 0616仁怀市乡镇小学 | D179: =VLOOKUP(A179,'[2]2020年0905'!$C$1:$H$65536,6,FALSE) -> 76.5 | E179: 75.36 | F179: 60.74
A180: 10121481620 | B180: 061607 | C180: 0616仁怀市乡镇小学 | D180: =VLOOKUP(A180,'[2]2020年0905'!$C$1:$H$65536,6,FALSE) -> 73 | E180: 70.58 | F180: 57.43
A181: 10121485317 | B181: 061607 | C181: 0616仁怀市乡镇小学 | D181: =VLOOKUP(A181,'[2]2020年0905'!$C$1:$H$65536,6,FALSE) -> 72 | E181: 78.1 | F181: 60.04
A182: 10121501011 | B182: 061607 | C182: 0616仁怀市乡镇小学 | D182: =VLOOKUP(A182,'[2]2020年0905'!$C$1:$H$65536,6,FALSE) -> 71 | E182: 0 | F182: 28.4
A183: 10121504707 | B183: 061608 | C183: 0616仁怀市乡镇小学 | D183: =VLOOKUP(A183,'[2]2020年0905'!$C$1:$H$65536,6,FALSE) -> 102.5 | E183: 83.24 | F183: 74.3
A184: 10121490707 | B184: 061608 | C184: 0616仁怀市乡镇小学 | D184: =VLOOKUP(A184,'[2]2020年0905'!$C$1:$H$65536,6,FALSE) -> 95.5 | E184: 82.92 | F184: 71.37
A185: 10121500701 | B185: 061608 | C185: 0616仁怀市乡镇小学 | D185: =VLOOKUP(A185,'[2]2020年0905'!$C$1:$H$65536,6,FALSE) -> 95.5 | E185: 85.82 | F185: 72.53
A186: 10121494029 | B186: 061608 | C186: 0616仁怀市乡镇小学 | D186: =VLOOKUP(A186,'[2]2020年0905'!$C$1:$H$65536,6,FALSE) -> 93 | E186: 86.42 | F186: 71.77
A187: 10121491105 | B187: 061608 | C187: 0616仁怀市乡镇小学 | D187: =VLOOKUP(A187,'[2]2020年0905'!$C$1:$H$65536,6,FALSE) -> 92.5 | E187: 79.5 | F187: 68.8
A188: 10121503907 | B188: 061608 | C188: 0616仁怀市乡镇小学 | D188: =VLOOKUP(A188,'[2]2020年0905'!$C$1:$H$65536,6,FALSE) -> 92.5 | E188: 85.76 | F188: 71.3
A189: 10121488718 | B189: 061608 | C189: 0616仁怀市乡镇小学 | D189: =VLOOKUP(A189,'[2]2020年0905'!$C$1:$H$65536,6,FALSE) -> 91.5 | E189: 84.52 | F189: 70.41
A190: 10121512428 | B190: 061608 | C190: 0616仁怀市乡镇小学 | D190: =VLOOKUP(A190,'[2]2020年0905'!$C$1:$H$65536,6,FALSE) -> 89 | E190: 83.04 | F190: 68.82
A191: 10121503121 | B191: 061608 | C191: 0616仁怀市乡镇小学 | D191: =VLOOKUP(A191,'[2]2020年0905'!$C$1:$H$65536,6,FALSE) -> 87.5 | E191: 86.8 | F191: 69.72
A192: 10121481406 | B192: 061608 | C192: 0616仁怀市乡镇小学 | D192: =VLOOKUP(A192,'[2]2020年0905'!$C$1:$H$65536,6,FALSE) -> 87 | E192: 78.94 | F192: 66.38
A193: 10121485427 | B193: 061608 | C193: 0616仁怀市乡镇小学 | D193: =VLOOKUP(A193,'[2]2020年0905'!$C$1:$H$65536,6,FALSE) -> 87 | E193: 87.52 | F193: 69.81
A194: 10121488228 | B194: 061608 | C194: 0616仁怀市乡镇小学 | D194: =VLOOKUP(A194,'[2]2020年0905'!$C$1:$H$65536,6,FALSE) -> 86.5 | E194: 87.38 | F194: 69.55
A195: 10121500923 | B195: 061608 | C195: 0616仁怀市乡镇小学 | D195: =VLOOKUP(A195,'[2]2020年0905'!$C$1:$H$65536,6,FALSE) -> 84.5 | E195: 82.9 | F195: =ROUND((D195/1.5*0.6+E195*0.4),2) -> 66.96
A196: 10121502425 | B196: 061608 | C196: 0616仁怀市乡镇小学 | D196: =VLOOKUP(A196,'[2]2020年0905'!$C$1:$H$65536,6,FALSE) -> 83.5 | E196: 82.5 | F196: 66.4
A197: 10121488405 | B197: 061608 | C197: 0616仁怀市乡镇小学 | D197: =VLOOKUP(A197,'[2]2020年0905'!$C$1:$H$65536,6,FALSE) -> 82 | E197: 83.9 | F197: 66.36
A198: 10121512408 | B198: 061608 | C198: 0616仁怀市乡镇小学 | D198: =VLOOKUP(A198,'[2]2020年0905'!$C$1:$H$65536,6,FALSE) -> 80.5 | E198: 82.4 | F198: 65.16
A199: 10121500521 | B199: 061608 | C199: 0616仁怀市乡镇小学 | D199: =VLOOKUP(A199,'[2]2020年0905'!$C$1:$H$65536,6,FALSE) -> 78.5 | E199: 81.04 | F199: 63.82
A200: 10121501324 | B200: 061608 | C200: 0616仁怀市乡镇小学 | D200: =VLOOKUP(A200,'[2]2020年0905'!$C$1:$H$65536,6,FALSE) -> 76 | E200: 79.74 | F200: 62.3
... 357 more rows
